[Event "*** Titled Tuesday Blitz"]
[Site "Chess.com"]
[Date "2020.05.19"]
[Round "1"]
[White "StephenDedalus83"]
[Black "ljuks68"]
[Result "1-0"]
[WhiteElo "2737"]
[BlackElo "2394"]
[TimeControl "180+1"]
[EndTime "12:08:16 PDT"]
[Termination "StephenDedalus83 won on time"]

1. e4 {[%clk 0:02:58.8]} 1... e6 {[%clk 0:02:57]} 2. d4 {[%clk 0:02:58]} 2... d5
{[%clk 0:02:57.1]} 3. Nc3 {[%clk 0:02:57.6]} 3... Bb4 {[%clk 0:02:56.5]} 4. e5
{[%clk 0:02:57.4]} 4... Ne7 {[%clk 0:02:56.5]} 5. a3 {[%clk 0:02:57.7]} 5...
Bxc3+ {[%clk 0:02:56.4]} 6. bxc3 {[%clk 0:02:58.6]} 6... c5 {[%clk 0:02:56.5]}
7. Qg4 {[%clk 0:02:58.2]} 7... Qc7 {[%clk 0:02:56.4]} 8. Bd3 {[%clk 0:02:56.9]}
8... c4 {[%clk 0:02:25.9]} 9. Be2 {[%clk 0:02:56.1]} 9... Nf5 {[%clk 0:02:15.9]}
10. Nf3 {[%clk 0:02:55]} 10... Bd7 {[%clk 0:02:10.4]} 11. Nh4 {[%clk 0:02:54.4]}
11... Nxh4 {[%clk 0:02:03.4]} 12. Qxh4 {[%clk 0:02:50.6]} 12... Ba4 {[%clk
0:01:57.1]} 13. Ra2 {[%clk 0:02:41.8]} 13... O-O {[%clk 0:01:52.2]} 14. Bg5
{[%clk 0:02:27.1]} 14... Nc6 {[%clk 0:01:39.5]} 15. O-O {[%clk 0:02:14.8]} 15...
Rae8 {[%clk 0:01:37.8]} 16. f4 {[%clk 0:02:08.8]} 16... Ne7 {[%clk 0:01:35.5]}
17. g4 {[%clk 0:01:48.5]} 17... Ng6 {[%clk 0:01:05.1]} 18. Qh5 {[%clk
0:01:47.5]} 18... f6 {[%clk 0:00:56.5]} 19. exf6 {[%clk 0:01:46.6]} 19... gxf6
{[%clk 0:00:56.5]} 20. Bh6 {[%clk 0:01:46.6]} 20... Rf7 {[%clk 0:00:55.2]} 21.
Rf2 {[%clk 0:01:22.2]} 21... f5 {[%clk 0:00:54.6]} 22. Ra1 {[%clk 0:00:40.6]}
22... Bxc2 {[%clk 0:00:48.7]} 23. Raf1 {[%clk 0:00:39.5]} 23... Be4 {[%clk
0:00:47.3]} 24. h3 {[%clk 0:00:38.7]} 24... Kh8 {[%clk 0:00:46.1]} 25. Bd1
{[%clk 0:00:33.9]} 25... Rg8 {[%clk 0:00:45.5]} 26. Kh2 {[%clk 0:00:33]} 26...
Qa5 {[%clk 0:00:34.6]} 27. gxf5 {[%clk 0:00:32.2]} 27... exf5 {[%clk 0:00:27.1]}
28. Rf3 {[%clk 0:00:30.4]} 28... Qxa3 {[%clk 0:00:24.5]} 29. Rg3 {[%clk
0:00:29.5]} 29... Qb2+ {[%clk 0:00:24]} 30. Qe2 {[%clk 0:00:28.9]} 30... Qxe2+
{[%clk 0:00:22.6]} 31. Bxe2 {[%clk 0:00:29.8]} 31... b5 {[%clk 0:00:18.8]} 32.
Bg5 {[%clk 0:00:27.4]} 32... a5 {[%clk 0:00:17]} 33. Ra1 {[%clk 0:00:27.3]}
33... Ra8 {[%clk 0:00:16.4]} 34. h4 {[%clk 0:00:25.7]} 34... Rff8 {[%clk
0:00:13.3]} 35. h5 {[%clk 0:00:25.7]} 35... b4 {[%clk 0:00:10.3]} 36. hxg6
{[%clk 0:00:25.6]} 36... hxg6 {[%clk 0:00:10.4]} 37. Rh3+ {[%clk 0:00:25.1]}
37... Kg8 {[%clk 0:00:09.3]} 38. Be7 {[%clk 0:00:20.8]} 38... Rf7 {[%clk
0:00:07.8]} 39. Bxb4 {[%clk 0:00:20.7]} 39... Rfa7 {[%clk 0:00:04.7]} 40. Bd6
{[%clk 0:00:20.4]} 40... a4 {[%clk 0:00:04.4]} 41. Be5 {[%clk 0:00:20.5]} 41...
a3 {[%clk 0:00:04.5]} 42. Rh8+ {[%clk 0:00:19.7]} 42... Kf7 {[%clk 0:00:04.7]}
43. Rxa8 {[%clk 0:00:18.9]} 43... Rxa8 {[%clk 0:00:04.4]} 44. Kg3 {[%clk
0:00:19.5]} 44... a2 {[%clk 0:00:04.3]} 45. Kf2 {[%clk 0:00:17.4]} 45... Bb1
{[%clk 0:00:04.1]} 46. Ke3 {[%clk 0:00:17.5]} 46... Ra3 {[%clk 0:00:03.5]} 47.
Kd2 {[%clk 0:00:16.1]} 47... Ra8 {[%clk 0:00:03.6]} 48. Bd1 {[%clk 0:00:15.9]}
48... Ke6 {[%clk 0:00:03.1]} 49. Bc2 {[%clk 0:00:15.3]} 49... Bxc2 {[%clk
0:00:02.5]} 50. Kxc2 {[%clk 0:00:14.7]} 50... Ra7 {[%clk 0:00:02.3]} 51. Kb2
{[%clk 0:00:14.4]} 51... Rh7 {[%clk 0:00:01.8]} 52. Rxa2 {[%clk 0:00:13.9]}
52... Rh2+ {[%clk 0:00:02.4]} 53. Ka3 {[%clk 0:00:13.8]} 53... Rh3 {[%clk
0:00:02.1]} 54. Kb4 {[%clk 0:00:13.6]} 54... Rg3 {[%clk 0:00:02]} 55. Ra6+
{[%clk 0:00:13.8]} 55... Kf7 {[%clk 0:00:01.7]} 56. Rd6 {[%clk 0:00:13.2]} 56...
g5 {[%clk 0:00:02]} 57. fxg5 {[%clk 0:00:13]} 57... Rxg5 {[%clk 0:00:02.4]} 58.
Rxd5 {[%clk 0:00:13.5]} 58... f4 {[%clk 0:00:03]} 59. Rd6 {[%clk 0:00:13.3]} 1-0

[Event "*** Titled Tuesday Blitz"]
[Site "Chess.com"]
[Date "2020.05.19"]
[Round "1"]
[White "CrushingKings"]
[Black "BulletMercenary"]
[Result "1-0"]
[WhiteElo "2497"]
[BlackElo "2080"]
[TimeControl "180+1"]
[EndTime "12:08:16 PDT"]
[Termination "CrushingKings won on time"]

1. e4 {[%clk 0:03:00.9]} 1... e6 {[%clk 0:02:57.7]} 2. Nf3 {[%clk 0:03:01.2]}
2... d5 {[%clk 0:02:54.3]} 3. Nc3 {[%clk 0:03:00.7]} 3... h6 {[%clk 0:02:49.8]}
4. d4 {[%clk 0:02:54.8]} 4... dxe4 {[%clk 0:02:41.2]} 5. Nxe4 {[%clk 0:02:54.6]}
5... Nf6 {[%clk 0:02:41.8]} 6. Bd3 {[%clk 0:02:52.9]} 6... b6 {[%clk 0:02:30.1]}
7. Nxf6+ {[%clk 0:02:50]} 7... Qxf6 {[%clk 0:02:29.8]} 8. Be4 {[%clk 0:02:50.9]}
8... c6 {[%clk 0:02:28.5]} 9. Ne5 {[%clk 0:02:50.2]} 9... Bb7 {[%clk 0:02:27.1]}
10. O-O {[%clk 0:02:48.3]} 10... Bd6 {[%clk 0:02:26.3]} 11. Qh5 {[%clk
0:02:11.5]} 11... g6 {[%clk 0:02:03.4]} 12. Qe2 {[%clk 0:01:45.8]} 12... Bxe5
{[%clk 0:02:01.4]} 13. dxe5 {[%clk 0:01:46.7]} 13... Qe7 {[%clk 0:01:49.5]} 14.
Qf3 {[%clk 0:01:44.9]} 14... Qc5 {[%clk 0:01:12.5]} 15. Qf6 {[%clk 0:01:34.3]}
15... Rh7 {[%clk 0:00:58.9]} 16. Be3 {[%clk 0:01:22.8]} 16... Nd7 {[%clk
0:00:38.6]} 17. Bxc5 {[%clk 0:01:04.5]} 17... Nxf6 {[%clk 0:00:38.5]} 18. exf6
{[%clk 0:01:05.2]} 18... bxc5 {[%clk 0:00:38.8]} 19. Rfd1 {[%clk 0:01:05.8]}
19... Rd8 {[%clk 0:00:33.1]} 20. h4 {[%clk 0:01:01.5]} 20... h5 {[%clk
0:00:29.7]} 21. a4 {[%clk 0:00:56]} 21... Rh8 {[%clk 0:00:29.7]} 22. f4 {[%clk
0:00:53]} 22... Rd4 {[%clk 0:00:29.5]} 23. Rxd4 {[%clk 0:00:47.9]} 23... cxd4
{[%clk 0:00:30.4]} 24. Rd1 {[%clk 0:00:48.2]} 24... Kd7 {[%clk 0:00:30.7]} 25.
Rxd4+ {[%clk 0:00:47.5]} 25... Kc7 {[%clk 0:00:31.3]} 26. Kf2 {[%clk 0:00:46.1]}
26... Rb8 {[%clk 0:00:29.4]} 27. b3 {[%clk 0:00:38.2]} 27... c5 {[%clk
0:00:22.7]} 28. Rc4 {[%clk 0:00:38.3]} 28... Bxe4 {[%clk 0:00:22.7]} 29. Rxe4
{[%clk 0:00:39.2]} 29... Kc6 {[%clk 0:00:23.1]} 30. Ke2 {[%clk 0:00:37.2]} 30...
Rd8 {[%clk 0:00:22.7]} 31. g3 {[%clk 0:00:36.9]} 31... Rd5 {[%clk 0:00:22.6]}
32. Re3 {[%clk 0:00:31.5]} 32... Rf5 {[%clk 0:00:22.8]} 33. Rd3 {[%clk 0:00:17]}
33... Rxf6 {[%clk 0:00:23.1]} 34. Rd8 {[%clk 0:00:17.4]} 34... Rf5 {[%clk
0:00:23.2]} 35. Re8 {[%clk 0:00:16.6]} 35... Rd5 {[%clk 0:00:22.2]} 36. Re7
{[%clk 0:00:16.5]} 36... Rd7 {[%clk 0:00:22.3]} 37. Re8 {[%clk 0:00:16.9]} 37...
Kd5 {[%clk 0:00:22.5]} 38. Ke3 {[%clk 0:00:16.5]} 38... c4 {[%clk 0:00:19.7]}
39. b4 {[%clk 0:00:13.9]} 39... c3 {[%clk 0:00:18.4]} 40. Rc8 {[%clk 0:00:10.8]}
40... Rb7 {[%clk 0:00:18.1]} 41. b5 {[%clk 0:00:09.1]} 41... a6 {[%clk
0:00:17.7]} 42. bxa6 {[%clk 0:00:09.1]} 42... Ra7 {[%clk 0:00:17.9]} 43. Rxc3
{[%clk 0:00:09]} 43... Rxa6 {[%clk 0:00:18.3]} 44. Ra3 {[%clk 0:00:09.4]} 44...
Kc4 {[%clk 0:00:18.7]} 45. Ke4 {[%clk 0:00:09.2]} 45... f6 {[%clk 0:00:17]} 46.
c3 {[%clk 0:00:07.8]} 46... Ra5 {[%clk 0:00:16]} 47. Ke3 {[%clk 0:00:06.9]}
47... Ra6 {[%clk 0:00:09]} 48. Kf3 {[%clk 0:00:07]} 48... Kc5 {[%clk 0:00:09.1]}
49. a5 {[%clk 0:00:06.5]} 49... Kb5 {[%clk 0:00:09]} 50. Ra1 {[%clk 0:00:06]}
50... Kc4 {[%clk 0:00:09]} 51. Ke4 {[%clk 0:00:05.8]} 51... Kxc3 {[%clk
0:00:09.3]} 52. Rc1+ {[%clk 0:00:05.9]} 52... Kb4 {[%clk 0:00:09.4]} 53. Rc8
{[%clk 0:00:06.3]} 53... Kxa5 {[%clk 0:00:08.9]} 54. Rg8 {[%clk 0:00:06.8]}
54... Kb5 {[%clk 0:00:08.7]} 55. Rxg6 {[%clk 0:00:06.7]} 55... f5+ {[%clk
0:00:09.2]} 56. Ke5 {[%clk 0:00:06.9]} 56... Ra3 {[%clk 0:00:09.7]} 57. Kxe6
{[%clk 0:00:07.1]} 57... Kc5 {[%clk 0:00:10.3]} 58. Kxf5 {[%clk 0:00:07.5]}
58... Kd5 {[%clk 0:00:10.8]} 59. Rg5 {[%clk 0:00:08.1]} 59... Kd6 {[%clk
0:00:11.2]} 60. Kg6 {[%clk 0:00:08.7]} 60... Ra7 {[%clk 0:00:10.3]} 61. Kxh5
{[%clk 0:00:09.1]} 1-0

[Event "*** Titled Tuesday Blitz"]
[Site "Chess.com"]
[Date "2020.05.19"]
[Round "1"]
[White "MisiekZielony"]
[Black "Tashik"]
[Result "0-1"]
[WhiteElo "2105"]
[BlackElo "2503"]
[TimeControl "180+1"]
[EndTime "12:08:17 PDT"]
[Termination "Tashik won on time"]

1. c4 {[%clk 0:03:00.8]} 1... c5 {[%clk 0:02:58.6]} 2. Nc3 {[%clk 0:03:00.3]}
2... Nf6 {[%clk 0:02:58.7]} 3. g3 {[%clk 0:02:59.9]} 3... d5 {[%clk 0:02:58.2]}
4. cxd5 {[%clk 0:02:59.7]} 4... Nxd5 {[%clk 0:02:59.1]} 5. Bg2 {[%clk 0:03:00]}
5... Nc7 {[%clk 0:02:59.7]} 6. Qa4+ {[%clk 0:02:59]} 6... Nd7 {[%clk 0:02:49.3]}
7. Nf3 {[%clk 0:02:33.7]} 7... g6 {[%clk 0:02:47]} 8. d4 {[%clk 0:02:15.4]} 8...
Bg7 {[%clk 0:02:37]} 9. O-O {[%clk 0:02:10.8]} 9... O-O {[%clk 0:02:35.9]} 10.
Rd1 {[%clk 0:02:10]} 10... cxd4 {[%clk 0:02:23.7]} 11. Nxd4 {[%clk 0:02:09.2]}
11... Nb6 {[%clk 0:02:03.7]} 12. Qc2 {[%clk 0:01:38.5]} 12... Bxd4 {[%clk
0:01:26.1]} 13. e3 {[%clk 0:01:37.8]} 13... Bf5 {[%clk 0:01:26.6]} 14. Be4
{[%clk 0:01:20.5]} 14... Bxe4 {[%clk 0:00:59.6]} 15. Qxe4 {[%clk 0:01:19.5]}
15... Ncd5 {[%clk 0:00:50.8]} 16. Nxd5 {[%clk 0:01:01.8]} 16... Qxd5 {[%clk
0:00:51.7]} 17. Qxd4 {[%clk 0:00:43.9]} 17... Qh5 {[%clk 0:00:45.7]} 18. e4
{[%clk 0:00:27.7]} 18... Rac8 {[%clk 0:00:45.5]} 19. Be3 {[%clk 0:00:23.7]}
19... e5 {[%clk 0:00:36]} 20. Qd3 {[%clk 0:00:20.8]} 20... Nc4 {[%clk
0:00:30.9]} 21. Rab1 {[%clk 0:00:19.9]} 21... b6 {[%clk 0:00:26.1]} 22. b3
{[%clk 0:00:18]} 22... Nxe3 {[%clk 0:00:25.1]} 23. Qxe3 {[%clk 0:00:18.2]} 23...
Rc2 {[%clk 0:00:25.7]} 24. Rd2 {[%clk 0:00:17.9]} 24... Rfc8 {[%clk 0:00:26.1]}
25. h4 {[%clk 0:00:15.8]} 25... Qg4 {[%clk 0:00:20.9]} 26. Re1 {[%clk
0:00:12.3]} 26... Qh3 {[%clk 0:00:16.1]} 27. Rxc2 {[%clk 0:00:09.9]} 27... Rxc2
{[%clk 0:00:17]} 28. Qd3 {[%clk 0:00:09.5]} 28... Rc8 {[%clk 0:00:13]} 29. Qf3
{[%clk 0:00:09.1]} 29... Kg7 {[%clk 0:00:10.1]} 30. Rd1 {[%clk 0:00:09.3]} 30...
Qe6 {[%clk 0:00:10.5]} 31. Qe2 {[%clk 0:00:09.3]} 31... Rc7 {[%clk 0:00:10.3]}
32. Rd5 {[%clk 0:00:09.3]} 32... h5 {[%clk 0:00:10.4]} 33. Qd2 {[%clk
0:00:09.1]} 33... Qf6 {[%clk 0:00:05.5]} 34. Qd3 {[%clk 0:00:09.1]} 34... Rc1+
{[%clk 0:00:03.7]} 35. Kg2 {[%clk 0:00:09.6]} 35... Qe6 {[%clk 0:00:04.3]} 36.
a4 {[%clk 0:00:09.2]} 36... Qg4 {[%clk 0:00:03.9]} 37. Rxe5 {[%clk 0:00:07.6]}
37... Qd1 {[%clk 0:00:01.7]} 38. Qxd1 {[%clk 0:00:07.6]} 38... Rxd1 {[%clk
0:00:02.6]} 39. Rd5 {[%clk 0:00:08.1]} 39... Rb1 {[%clk 0:00:03.5]} 40. Rd7
{[%clk 0:00:08.2]} 40... Rxb3 {[%clk 0:00:03.7]} 41. Rxa7 {[%clk 0:00:08.5]}
41... Rb4 {[%clk 0:00:04.6]} 42. Rb7 {[%clk 0:00:08.9]} 42... Rxe4 {[%clk
0:00:03.8]} 43. Rxb6 {[%clk 0:00:09.3]} 43... Rxa4 {[%clk 0:00:04.7]} 44. Rb2
{[%clk 0:00:09.7]} 44... Ra7 {[%clk 0:00:05]} 45. Rd2 {[%clk 0:00:10.2]} 45...
Re7 {[%clk 0:00:05.3]} 46. Re2 {[%clk 0:00:10.8]} 46... Rxe2 {[%clk 0:00:04.4]}
47. Kf3 {[%clk 0:00:11.5]} 47... Ra2 {[%clk 0:00:05.3]} 48. Kg2 {[%clk
0:00:06.5]} 48... f6 {[%clk 0:00:06.2]} 49. Kf3 {[%clk 0:00:06.7]} 49... g5
{[%clk 0:00:07.1]} 0-1

[Event "*** Titled Tuesday Blitz"]
[Site "Chess.com"]
[Date "2020.05.19"]
[Round "1"]
[White "Isajevsky_Anton"]
[Black "Saxar85"]
[Result "1-0"]
[WhiteElo "2401"]
[BlackElo "2709"]
[TimeControl "180+1"]
[EndTime "12:08:19 PDT"]
[Termination "Isajevsky_Anton won by resignation"]

1. c4 {[%clk 0:02:59.1]} 1... d6 {[%clk 0:02:59]} 2. g3 {[%clk 0:02:58.8]} 2...
e5 {[%clk 0:02:56.9]} 3. Bg2 {[%clk 0:02:59.2]} 3... f5 {[%clk 0:02:56.9]} 4.
Nc3 {[%clk 0:02:59.7]} 4... Nf6 {[%clk 0:02:56.6]} 5. d3 {[%clk 0:02:59.8]} 5...
Be7 {[%clk 0:02:54.4]} 6. e3 {[%clk 0:02:59.1]} 6... c6 {[%clk 0:02:54.1]} 7.
Nge2 {[%clk 0:02:58.7]} 7... O-O {[%clk 0:02:54]} 8. O-O {[%clk 0:02:58.8]} 8...
Na6 {[%clk 0:02:53.6]} 9. b3 {[%clk 0:02:58.4]} 9... Be6 {[%clk 0:02:47.6]} 10.
Bb2 {[%clk 0:02:56.7]} 10... Qe8 {[%clk 0:02:47.2]} 11. Qd2 {[%clk 0:02:46]}
11... Qh5 {[%clk 0:02:46]} 12. f4 {[%clk 0:02:45.1]} 12... Rae8 {[%clk
0:02:43.8]} 13. h3 {[%clk 0:02:42.4]} 13... Qg6 {[%clk 0:02:37.9]} 14. Kh2
{[%clk 0:02:41.6]} 14... Nc7 {[%clk 0:02:36.7]} 15. Rae1 {[%clk 0:02:39.7]}
15... Nd7 {[%clk 0:02:22]} 16. e4 {[%clk 0:02:36.1]} 16... Qh6 {[%clk
0:02:15.2]} 17. d4 {[%clk 0:02:31.8]} 17... fxe4 {[%clk 0:02:03.5]} 18. dxe5
{[%clk 0:02:26.1]} 18... d5 {[%clk 0:01:48.7]} 19. cxd5 {[%clk 0:02:17]} 19...
cxd5 {[%clk 0:01:48.3]} 20. Nd4 {[%clk 0:02:05.7]} 20... Nc5 {[%clk 0:01:46.4]}
21. Re3 {[%clk 0:01:54.3]} 21... Nd3 {[%clk 0:01:43.3]} 22. Rxd3 {[%clk
0:01:54.1]} 22... exd3 {[%clk 0:01:43.1]} 23. Qxd3 {[%clk 0:01:54]} 23... Bc8
{[%clk 0:01:21.1]} 24. f5 {[%clk 0:01:40.8]} 24... Kh8 {[%clk 0:01:19.8]} 25. e6
{[%clk 0:01:17.8]} 25... Rd8 {[%clk 0:01:11.1]} 26. Bc1 {[%clk 0:00:38]} 26...
Qf6 {[%clk 0:01:10.3]} 27. h4 {[%clk 0:00:34.3]} 27... h6 {[%clk 0:01:09.4]} 28.
Bf4 {[%clk 0:00:31.2]} 28... Bd6 {[%clk 0:01:09.3]} 29. Nce2 {[%clk 0:00:30.8]}
29... b6 {[%clk 0:00:56.8]} 30. Qe3 {[%clk 0:00:22.4]} 30... Ba6 {[%clk
0:00:49.5]} 31. Rc1 {[%clk 0:00:22.4]} 31... Nb5 {[%clk 0:00:35.5]} 32. Bxd6
{[%clk 0:00:14.7]} 32... Rxd6 {[%clk 0:00:33.6]} 33. a4 {[%clk 0:00:14.7]} 33...
Nxd4 {[%clk 0:00:30.5]} 34. Nxd4 {[%clk 0:00:15.6]} 34... Re8 {[%clk 0:00:28]}
35. Rc7 {[%clk 0:00:14.4]} 35... Re7 {[%clk 0:00:24]} 36. Rc2 {[%clk 0:00:14.2]}
36... Kh7 {[%clk 0:00:21.7]} 37. Bf3 {[%clk 0:00:13.1]} 37... g6 {[%clk
0:00:20.1]} 38. Bg4 {[%clk 0:00:13.2]} 38... g5 {[%clk 0:00:13.6]} 39. h5 {[%clk
0:00:12.6]} 39... Bb7 {[%clk 0:00:08.5]} 40. Bf3 {[%clk 0:00:12.8]} 40... a6
{[%clk 0:00:08.6]} 41. g4 {[%clk 0:00:13.1]} 41... Rd8 {[%clk 0:00:07.2]} 42.
Kh3 {[%clk 0:00:13.5]} 42... Rd6 {[%clk 0:00:07.4]} 43. Rc3 {[%clk 0:00:12.9]}
43... Rd8 {[%clk 0:00:07.6]} 44. Rc2 {[%clk 0:00:13.3]} 44... Rd6 {[%clk
0:00:07.9]} 45. b4 {[%clk 0:00:13.9]} 45... Rd8 {[%clk 0:00:07.7]} 46. a5 {[%clk
0:00:14.3]} 46... b5 {[%clk 0:00:07.6]} 47. Rc5 {[%clk 0:00:13.7]} 47... Rd6
{[%clk 0:00:07.8]} 48. Be2 {[%clk 0:00:13.7]} 48... Rd8 {[%clk 0:00:07.8]} 49.
Kg3 {[%clk 0:00:14.2]} 49... Rd6 {[%clk 0:00:08.1]} 50. Kf2 {[%clk 0:00:14.7]}
50... Rd8 {[%clk 0:00:08.2]} 51. Ke1 {[%clk 0:00:15.2]} 51... Rd6 {[%clk
0:00:08.6]} 52. Kd2 {[%clk 0:00:15.6]} 52... Rd8 {[%clk 0:00:08.9]} 53. Kd3
{[%clk 0:00:16.1]} 53... Rd6 {[%clk 0:00:09.3]} 54. Qg3 {[%clk 0:00:16.3]} 54...
Rd8 {[%clk 0:00:09]} 55. Rc7 {[%clk 0:00:16.3]} 55... Re8 {[%clk 0:00:09.3]} 56.
Bf3 {[%clk 0:00:15.5]} 56... Kg7 {[%clk 0:00:08.8]} 57. Rc5 {[%clk 0:00:15]}
57... Kf8 {[%clk 0:00:08.1]} 58. Qd6 {[%clk 0:00:13.4]} 58... Kg7 {[%clk
0:00:07.5]} 59. Rc7 {[%clk 0:00:13.7]} 59... Kf8 {[%clk 0:00:07]} 60. Rxb7
{[%clk 0:00:13.3]} 1-0

[Event "*** Titled Tuesday Blitz"]
[Site "Chess.com"]
[Date "2020.05.19"]
[Round "1"]
[White "ChessWarrior7197"]
[Black "cukus"]
[Result "0-1"]
[WhiteElo "2918"]
[BlackElo "2471"]
[TimeControl "180+1"]
[EndTime "12:08:20 PDT"]
[Termination "cukus won by resignation"]

1. e4 {[%clk 0:03:00.2]} 1... c6 {[%clk 0:02:58.9]} 2. d4 {[%clk 0:02:59.7]}
2... d5 {[%clk 0:02:59]} 3. e5 {[%clk 0:03:00.2]} 3... Bf5 {[%clk 0:02:57.4]} 4.
Nf3 {[%clk 0:03:00.3]} 4... e6 {[%clk 0:02:53.5]} 5. Be2 {[%clk 0:03:00.2]} 5...
Nd7 {[%clk 0:02:50.9]} 6. O-O {[%clk 0:02:56.5]} 6... Ne7 {[%clk 0:02:51.4]} 7.
Nh4 {[%clk 0:02:33.5]} 7... Be4 {[%clk 0:02:49.7]} 8. Nd2 {[%clk 0:02:28.9]}
8... c5 {[%clk 0:02:46.6]} 9. c3 {[%clk 0:02:15.1]} 9... Nc6 {[%clk 0:02:42.4]}
10. Nxe4 {[%clk 0:02:08.6]} 10... dxe4 {[%clk 0:02:34.5]} 11. g3 {[%clk
0:02:03.3]} 11... cxd4 {[%clk 0:02:25]} 12. cxd4 {[%clk 0:02:01.7]} 12... Be7
{[%clk 0:02:13.5]} 13. d5 {[%clk 0:02:01]} 13... exd5 {[%clk 0:02:09.8]} 14. Nf5
{[%clk 0:01:49.4]} 14... Ndxe5 {[%clk 0:01:39]} 15. Nxg7+ {[%clk 0:01:48.9]}
15... Kf8 {[%clk 0:01:38.7]} 16. Nf5 {[%clk 0:01:48.6]} 16... Qd7 {[%clk
0:01:21.7]} 17. Nxe7 {[%clk 0:01:48.6]} 17... Kxe7 {[%clk 0:01:20.2]} 18. b3
{[%clk 0:01:47.7]} 18... Qf5 {[%clk 0:01:06.6]} 19. f4 {[%clk 0:01:44.9]} 19...
exf3 {[%clk 0:00:25.5]} 20. Bxf3 {[%clk 0:01:43.3]} 20... Nxf3+ {[%clk
0:00:25.1]} 21. Rxf3 {[%clk 0:01:42.3]} 21... Qe6 {[%clk 0:00:25.6]} 22. Re3
{[%clk 0:01:39.6]} 22... Ne5 {[%clk 0:00:19.5]} 23. Ba3+ {[%clk 0:01:38.4]}
23... Kd7 {[%clk 0:00:17.7]} 24. Qd4 {[%clk 0:01:35.5]} 24... f6 {[%clk
0:00:18]} 25. Rd1 {[%clk 0:01:35.3]} 25... Rhc8 {[%clk 0:00:17.2]} 26. Rd2
{[%clk 0:01:29.5]} 26... Rc6 {[%clk 0:00:16.5]} 27. Qh4 {[%clk 0:01:25.5]} 27...
Re8 {[%clk 0:00:08]} 28. Qxh7+ {[%clk 0:01:24.4]} 28... Kc8 {[%clk 0:00:08.3]}
29. Qh4 {[%clk 0:01:17.7]} 29... Nf3+ {[%clk 0:00:07.6]} 30. Rxf3 {[%clk
0:01:14.7]} 30... Qe1+ {[%clk 0:00:08.5]} 31. Kg2 {[%clk 0:01:10.2]} 31... Qxd2+
{[%clk 0:00:09.4]} 32. Kh3 {[%clk 0:01:11.1]} 32... Qe2 {[%clk 0:00:09]} 33.
Qg4+ {[%clk 0:01:10.2]} 33... Qe6 {[%clk 0:00:08.9]} 34. Qxe6+ {[%clk
0:01:06.8]} 34... Rexe6 {[%clk 0:00:09.8]} 35. Bb2 {[%clk 0:01:07.7]} 35... Rc2
{[%clk 0:00:08.7]} 36. Bxf6 {[%clk 0:01:07.3]} 36... Ree2 {[%clk 0:00:09]} 37.
g4 {[%clk 0:01:07.3]} 37... Rxh2+ {[%clk 0:00:07.4]} 38. Kg3 {[%clk 0:01:07.7]}
38... Rcg2+ {[%clk 0:00:07.8]} 39. Kf4 {[%clk 0:01:06.3]} 39... Rf2 {[%clk
0:00:08.7]} 40. g5 {[%clk 0:01:07.2]} 40... Rxf3+ {[%clk 0:00:08.9]} 41. Kxf3
{[%clk 0:01:08.1]} 41... Kd7 {[%clk 0:00:09.8]} 42. g6 {[%clk 0:01:08.6]} 42...
Ke6 {[%clk 0:00:10.1]} 43. g7 {[%clk 0:01:09.2]} 43... Kf7 {[%clk 0:00:09.9]}
44. Ke3 {[%clk 0:01:04.3]} 44... Rxa2 {[%clk 0:00:09.7]} 45. Kd4 {[%clk
0:01:04.7]} 45... Rb2 {[%clk 0:00:09.9]} 46. Kc3 {[%clk 0:01:01.3]} 46... Rg2
{[%clk 0:00:09.9]} 47. Bd4 {[%clk 0:00:58.7]} 47... a5 {[%clk 0:00:10.2]} 48.
Bb6 {[%clk 0:00:53.7]} 48... Rg3+ {[%clk 0:00:09]} 49. Kd4 {[%clk 0:00:53]}
49... Rxb3 {[%clk 0:00:08.9]} 50. Bxa5 {[%clk 0:00:53.3]} 50... Kxg7 {[%clk
0:00:08.9]} 51. Be1 {[%clk 0:00:51.5]} 51... Rb5 {[%clk 0:00:08.7]} 52. Ke5
{[%clk 0:00:49.3]} 52... Kf7 {[%clk 0:00:08.9]} 53. Bh4 {[%clk 0:00:49.1]} 53...
d4+ {[%clk 0:00:08]} 54. Ke4 {[%clk 0:00:48.6]} 54... Ke6 {[%clk 0:00:08]} 55.
Bf2 {[%clk 0:00:48.1]} 55... Rb4 {[%clk 0:00:07.7]} 56. Bxd4 {[%clk 0:00:48.1]}
56... Rxd4+ {[%clk 0:00:06.3]} 57. Kxd4 {[%clk 0:00:49]} 57... Kd6 {[%clk
0:00:07]} 58. Kc4 {[%clk 0:00:49.4]} 58... Kc6 {[%clk 0:00:07.4]} 59. Kb3 {[%clk
0:00:49.9]} 59... Kb5 {[%clk 0:00:07.5]} 60. Kc3 {[%clk 0:00:50.2]} 60... Ka4
{[%clk 0:00:07.6]} 61. Kc4 {[%clk 0:00:50.4]} 61... b5+ {[%clk 0:00:07.6]} 62.
Kc3 {[%clk 0:00:50.9]} 62... Ka3 {[%clk 0:00:08]} 63. Kc2 {[%clk 0:00:51.1]}
63... b4 {[%clk 0:00:07.8]} 64. Kb1 {[%clk 0:00:48.8]} 64... Kb3 {[%clk
0:00:07.9]} 65. Ka1 {[%clk 0:00:45.7]} 65... Kc2 {[%clk 0:00:07.8]} 66. Ka2
{[%clk 0:00:46.2]} 66... b3+ {[%clk 0:00:08.2]} 0-1